Cogmind - Beta 16.1 @@@ ROGUE MODE // 2026.03.22 @ 21:01:54 Player: whodovoodoo Result: Destroyed by G-34 Mercenary with Small Laser Performance ------------- Evolutions (1) 500 Regions Visited (3) 600 Robots Destroyed (8) 40 Value Destroyed (158) 158 Prototype IDs (0) 0 Alien Tech Used (0) 0 Bonus (0) 0 TOTAL SCORE: 1298 Bonus ------- None Cogmind --------- Core Integrity 0/400 Matter 300/300 Energy 87/100 System Corruption 0% Temperature Cool (6) Movement Core (200) Ox3 Location -9/Storage Parts ------- > --- POWER (1) -------- (None) > --- PROPULSION (2) --- (None) > --- UTILITY (3) ------ Medium Storage Unit > --- WEAPON (3) ------- (None) > --- INVENTORY (10) --- Light Ion Engine Wheel Wheel Compact Wheel Compact Wheel Compact Wheel Drone Bay (2/2) Small Laser Improved Medium Laser Peak State ------------ > --- POWER ------------ Light Ion Engine > --- PROPULSION ------- Wheel Wheel > --- UTILITY ---------- Small Storage Unit Improved Terrain Scanner > --- WEAPON ----------- Medium Laser Medium Laser > --- INVENTORY -------- Ion Engine Light Ion Engine Aluminum Leg Wheel Wheel Compact Wheel Small Laser Improved Medium Laser [Rating: 10] Favorites ----------- Power Light Ion Engine Engine Light Ion Engine Propulsion Wheel Leg Aluminum Leg Wheel Wheel Utility Medium Storage Unit Device Improved Terrain Scanner Storage Medium Storage Unit Weapon Medium Laser Energy Gun Medium Laser Special Weapon Mining Laser Build | -11 -10 -9 -9 ------- Run | Yrd Mat Mat Sto Slots Evolved 2 | . . 2 . Power . | . . . . Propulsion . | . . . . Utility 1 | . . 1 . Weapon 1 | . . 1 . Parts Attached 13 | 7 1 . 5 Power 2 | 1 . . 1 Engine 2 | 1 . . 1 Core . | . . . . Reactor . | . . . . Propulsion 4 | 2 . . 2 Treads . | . . . . Leg 2 | . . . 2 Wheel 2 | 2 . . . Hover . | . . . . Flight . | . . . . Utility 3 | 2 1 . . Device 1 | 1 . . . Storage 2 | 1 1 . . Processor . | . . . . Hackware . | . . . . Protection . | . . . . Artifact . | . . . . Weapon 4 | 2 . . 2 Energy Gun 3 | 2 . . 1 Energy Cannon . | . . . . Ballistic Gun . | . . . . Ballistic Cannon . | . . . . Launcher . | . . . . Special Weapon 1 | . . . 1 Impact Weapon . | . . . . Slashing Weapon . | . . . . Piercing Weapon . | . . . . Special Melee Weapon . | . . . . Unidentified Prototypes . | . . . . Parts Lost 10 | . . . 10 Power 1 | . . . 1 Propulsion 4 | . . . 4 Utility 1 | . . . 1 Weapon 4 | . . . 4 Highest Loss Streak 8 | . . . 8 To Critical Strikes . | . . . . Average Backups 8 | 4 9 10 9 Power 1 | 1 2 2 1 Propulsion 4 | 2 4 5 5 Utility . | . . . . Weapon 2 | . 2 3 2 Tool/Special . | . . . . Unused Backups 10 | . 1 . 9 Power 1 | . . . 1 Propulsion 6 | . 1 . 5 Utility 1 | . . . 1 Weapon 2 | . . . 2 Tool/Special . | . . . . Average Slot Usage (%) 74 | . 100 77 53 Engine 9 | . 14 11 5 Leg 2 | . . . 4 Wheel 18 | . 28 22 9 Device 10 | . 14 11 7 Storage 12 | . 14 11 11 Energy Gun 20 | . 28 22 14 Peak Build Rating 10 | 9 10 10 10 Average Rating 7 | 5 9 10 7 On Entrance 7 | . 9 10 10 Avg Prop Armor Cover (%) . | . . . . Naked Turns . | . . . . Heaviest Build 19 | 13 18 18 19 Greatest Support 20 | 20 20 20 20 Greatest Overweight (x) 4 | . . . 4 Average Overweight (x) . | . . . . Largest Inventory Capacity 10 | 8 10 10 10 Average Capacity 9 | 7 9 10 10 Most Carried 10 | 7 10 10 10 Average Carried 8 | 4 9 10 9 Final Capacity 10 | 8 10 10 10 Final Carried 10 | 7 10 10 9 Class Distribution -------------------- 92% | Mutant 7% | Skirmisher Dominant Class ---------------- Mutant | -10/Materials Mutant | -9/Materials Mutant | -9/Storage Resources | -11 -10 -9 -9 ----------- Run | Yrd Mat Mat Sto Matter Collected 294 | 270 10 . 14 Remotely . | . . . . Salvage Created 293 | 128 25 . 140 Parts 14 | 7 1 . 6 Haulers Intercepted . | . . . . Recyclers Shooed . | . . . . Parts Field Recycled . | . . . . Retrieved Matter . | . . . . Parts Self-Destructed . | . . . . Prevented . | . . . . Parts Restored . | . . . . Kills | -11 -10 -9 -9 ------- Run | Yrd Mat Mat Sto Combat Hostiles Destroyed 3 | . . . 3 Guns 2 | . . . 2 Classes Destroyed 5 | 2 1 . 2 Tunneler 3 | 3 . . . Recycler 1 | 1 . . . Watcher 1 | . 1 . . Grunt 2 | . . . 2 Duelist 1 | . . . 1 Best Kill Streak 4 | 4 1 . 3 Combat Bots Only 3 | . . . 3 Max Kills in Single Turn 1 | 1 1 . 1 Gunslinging . | . . . . Exploded . | . . . . Melee . | . . . . Uniques/NPCs Destroyed . | . . . . Combat | -11 -10 -9 -9 -------- Run | Yrd Mat Mat Sto Hostile Shots Fired 109 | . 1 . 108 Missed 36 | . . . 36 Hits 73 | . 1 . 72 Melee 10 | . . . 10 Projectile 63 | . 1 . 62 Critical Strikes 1 | . . . 1 Damage Taken 1033 | 2 12 . 1019 Core 405 | . . . 405 Absorbed by Shields . | . . . . Core Remaining (%) 100 | 100 100 . . Volleys Fired 27 | 10 3 . 14 Largest 3 | 2 2 . 3 Hottest 200 | 100 100 . 200 Shots Fired 48 | 16 6 . 26 Gun 45 | 16 6 . 23 Cannon . | . . . . Launcher . | . . . . Special 3 | . . . 3 Kinetic . | . . . . Thermal 48 | 16 6 . 26 Explosive . | . . . . Electromagnetic . | . . . . Robot Hit Streak 10 | 5 3 . 10 Robot Miss Streak 3 | 2 2 . 3 Penetration Max . | . . . . Secondary Targets . | . . . . Shots Hit Robots 31 | 11 3 . 17 Core Hits 23 | 5 2 . 16 Critical Kills . | . . . . Critical Parts Destroyed . | . . . . Critical Strikes 2 | . . . 2 Burn 2 | . . . 2 Melee Attacks . | . . . . Impact . | . . . . Slashing . | . . . . Piercing . | . . . . Sneak Attacks . | . . . . Combat Hostiles . | . . . . Follow-up Attacks . | . . . . Damage Inflicted 487 | 142 38 . 307 Guns 429 | 137 38 . 254 Cannons . | . . . . Explosions . | . . . . Melee . | . . . . Ramming 34 | 5 . . 29 Kinetic . | . . . . Thermal 453 | 137 38 . 278 Explosive . | . . . . Electromagnetic . | . . . . Impact . | . . . . Slashing . | . . . . Piercing . | . . . . Highest Corruption . | . . . . Average Corruption . | . . . . Corruption Purged . | . . . . Corruption Blocked . | . . . . Overload Shots . | . . . . Overflow Damage . | . . . . Projectiles . | . . . . Explosions . | . . . . Melee . | . . . . Knockbacks . | . . . . Impact . | . . . . Kinetic . | . . . . Secondary . | . . . . Self-Inflicted Damage 5 | 2 . . 3 Shots . | . . . . Rammed 5 | 1 . . 4 Targets Rammed 15 | 1 . . 14 Kicked 10 | . . . 10 Crushed . | . . . . Highest Temperature 400 | 117 78 . 400 Average Temperature 111 | 41 37 . 164 Received Heat Transfer 378 | . 6 . 372 Effects 1 | . . . 1 Short Circuit 1 | . . . 1 Siege Activations . | . . . . Martial Activations . | . . . . Shielding Activations . | . . . . Robots Disrupted . | . . . . Combat Hostiles . | . . . . Robots Corrupted . | . . . . Combat Hostiles . | . . . . Parts Fried . | . . . . Impact Corruptions . | . . . . Robots Melted 1 | . . . 1 Combat Hostiles 1 | . . . 1 Parts Melted 1 | 1 . . . Heat Transferred 1395 | 407 111 . 877 Parts Sabotaged . | . . . . Parts Stolen . | . . . . Parts Stripped . | . . . . Power Chain Reactions . | . . . . Alert | -11 -10 -9 -9 ------- Run | Yrd Mat Mat Sto Maximum Alert Level . | . . . . Low Security (%) 100 | 100 100 100 100 Level 1 . | . . . . Level 2 . | . . . . Level 3 . | . . . . Level 4 . | . . . . Level 5 . | . . . . High Security . | . . . . Max Security . | . . . . Peak Influence 42 | 10 9 . 42 Initial . | . . . . Average 3 | 1 . . 6 Influence Increases 108 | 20 16 . 72 Destroy 0b10 Robot/C 60 | . . . 60 Destroy 0b10 Robot/NC 25 | 20 5 . . Destroy Leader 12 | . 2 . 10 Successful Hack 9 | . 9 . . Destroy Structure 2 | . . . 2 Influence Decreases 108 | 20 16 . 72 Time Decay 66 | 20 16 . 30 Lost Part 42 | . . . 42 Squads Dispatched 2 | . 1 . 1 Investigation . | . . . . Extermination . | . . . . Reinforcement 2 | . 1 . 1 Assault . | . . . . Garrison . | . . . . Intercept . | . . . . Searches Triggered . | . . . . Construction Impeded . | . . . . Haulers Reinforced . | . . . . Active Scanning Responses . | . . . . Cargo Convoy Interrupts . | . . . . Stealth | -11 -10 -9 -9 --------- Run | Yrd Mat Mat Sto Distress Signals . | . . . . Communications Jammed . | . . . . Distress Signals . | . . . . Times Spotted 15 | . 5 . 10 Peak Tracking Total 8 | . 2 . 8 Tactical Retreats . | . . . . Traps | -11 -10 -9 -9 ------- Run | Yrd Mat Mat Sto Traps Triggered . | . . . . Indirectly . | . . . . Trap Hack Attempts . | . . . . Triggered . | . . . . Disarmed 4 | . 4 . . Reprogrammed . | . . . . Reused . | . . . . Traps Extracted . | . . . . Installed . | . . . . Triggered . | . . . . Machines | -11 -10 -9 -9 ---------- Run | Yrd Mat Mat Sto Machines Disabled . | . . . . Max in Single Turn . | . . . . Machines Repaired . | . . . . Machines Dismantled . | . . . . Machines Sabotaged . | . . . . Overloaded Fab Kills . | . . . . Hacking | -11 -10 -9 -9 --------- Run | Yrd Mat Mat Sto Machines Accessed 6 | . 3 1 2 Terminals 6 | . 3 1 2 Fabricators . | . . . . Repair Stations . | . . . . Recycling Units . | . . . . Scanalyzers . | . . . . Garrison Access . | . . . . Total Hacks 18 | . 12 2 4 Successful 10 | . 7 1 2 Failed 8 | . 5 1 2 Catastrophic . | . . . . Database Lockouts . | . . . . Manual . | . . . . Terminals 18 | . 12 2 4 Fabricators . | . . . . Repair Stations . | . . . . Recycling Units . | . . . . Scanalyzers . | . . . . Garrison Access . | . . . . Terminal Hacks 10 | . 7 1 2 Open Door 1 | . . . 1 Emergency Access Points 1 | . 1 . . Alert Level 1 | . . 1 . Locate Traps 1 | . 1 . . Disarm Traps 1 | . 1 . . Investigation Status 2 | . 2 . . Recall Investigation 1 | . 1 . . Hauler Manifests 1 | . 1 . . Zone Layout 1 | . . . 1 Fabricator Hacks . | . . . . Repair Station Hacks . | . . . . Recycling Unit Hacks . | . . . . Scanalyzer . | . . . . Garrison Access Hacks . | . . . . Unauthorized Hacks . | . . . . Terminals . | . . . . Fabricators . | . . . . Repair Stations . | . . . . Recycling Units . | . . . . Scanalyzers . | . . . . Garrison Access . | . . . . Data Cores Recovered . | . . . . Used . | . . . . Hacking Detections 5 | . 3 1 1 Full Trace Events . | . . . . Feedback Events . | . . . . Feedback Blocked . | . . . . Robot Schematics Acquired . | . . . . Robots Built . | . . . . Authchips . | . . . . Time . | . . . . Total Robot Build Rating . | . . . . Part Schematics Acquired . | . . . . Parts Built . | . . . . Authchips . | . . . . Time . | . . . . Total Part Build Rating . | . . . . Part Studies Acquired . | . . . . Parts Repaired . | . . . . Time . | . . . . Parts Recycled . | . . . . Recycled Matter . | . . . . Retrieved Matter . | . . . . Retrieved Components . | . . . . Parts Scanalyzed . | . . . . Part Schematics Acquired . | . . . . Parts Damaged . | . . . . Bothacking | -11 -10 -9 -9 ------------ Run | Yrd Mat Mat Sto Used RIF Installer . | . . . . Robots Hacked . | . . . . Non-combat . | . . . . Combat . | . . . . Robot Hacks Applied . | . . . . Relay Couplers Released . | . . . . Fabnet Peak Effective % . | . . . . Robots Rewired . | . . . . Allies Hacked . | . . . . Hacks Repelled . | . . . . Allies | -11 -10 -9 -9 -------- Run | Yrd Mat Mat Sto Total Allies . | . . . . Largest Group . | . . . . Highest-Rated Group . | . . . . Highest-Rated Ally . | . . . . Total Orders . | . . . . Ally Attacks . | . . . . Total Damage . | . . . . Kills . | . . . . Allies Corrupted . | . . . . Allies Melted . | . . . . Intel | -11 -10 -9 -9 ------- Run | Yrd Mat Mat Sto Active Infowar (turns) 259 | 9 134 22 94 Terrain 259 | 9 134 22 94 Robot Analysis Total . | . . . . Derelict Logs Recovered . | . . . . Drone Launches . | . . . . Drone Recoveries . | . . . . Exploration | -11 -10 -9 -9 ------------- Run | Yrd Mat Mat Sto Turns Passed 410 | 88 134 22 166 Spaces Moved 328 | 56 149 28 95 Core 6 | 5 . . 1 Treads . | . . . . Legs 37 | . . . 37 Wheels 285 | 51 149 28 57 Hover . | . . . . Flight . | . . . . Fastest Speed 50 | 50 80 80 80 Average Speed 85 | 77 80 80 99 Slowest Speed 250 | 80 80 80 250 Overloaded Moves . | . . . . Propulsion Burnouts . | . . . . Robots Hopped . | . . . . Potential Cave-ins . | . . . . Cave-ins Triggered . | . . . . Exploration Rate (%) 16 | 3 33 5 23 Regions Visited 3 Branch Regions 1 Pre-discovered Areas . | . . . . Known Exits Taken . | . . . . Unknown Exits Taken 3 | 1 1 1 . Scrap Searched . | . . . . Spaces Dug . | . . . . Terrain Destroyed 2 | . . . 2 Melee . | . . . . Projectile 2 | . . . 2 AOE . | . . . . Terrain Rammed . | . . . . Walls Destroyed . | . . . . Machines Disabled . | . . . . Actions | -11 -10 -9 -9 --------- Run | Yrd Mat Mat Sto Total 397 | 80 158 27 132 Wait 3 | . . . 3 Move 325 | 55 148 27 95 Hop . | . . . . Pick Up 12 | 7 4 . 1 Fast Attach 10 | 7 . . 3 Attach 2 | . . . 2 Detach . | . . . . Swap 1 | . 1 . . Drop 2 | . 2 . . Fire 27 | 10 3 . 14 Melee . | . . . . Ram 5 | 1 . . 4 Kick 10 | . . . 10 Crush . | . . . . Escape Stasis . | . . . . Rewire . | . . . . Trap . | . . . . Miscellaneous . | . . . . Route ------- -11/Scrapyard -10/Materials (discovered 2 exits: *Mat / [*Min]) -9/Materials -9/Storage History --------- Turn | Location | Event 7 | -11/Scrapyard | Discovered new exit (range 15) 89 | -11/Scrapyard | Entered Materials 136 | -10/Materials | Discovered new exit (range 8) 211 | -10/Materials | Discovered new exit (range 12) 223 | -10/Materials | Entered another Materials area 223 | -9/Materials | Evolved 2 slots: Utility x1, Weapon x1 234 | -9/Materials | Discovered new exit (range 13) 245 | -9/Materials | Entered Storage 340 | -9/Storage | Core integrity fell below 50% 378 | -9/Storage | Core integrity fell below 20% 396 | -9/Storage | Lost 8 parts (1p3n1u3w) 411 | -9/Storage | Destroyed by G-34 Mercenary with Small Laser Last Messages --------------- Kicked L-31 Rogue out of the way. Broken Imp. Terrain Scanner destroyed. Kicked G-34 Mercenary. Kicked G-34 Mercenary out of the way. Kicked G-34 Mercenary. K-01 Serf collects debris. Kicked G-34 Mercenary. Kicked G-34 Mercenary out of the way. Med. Laser destroyed. K-01 Serf collects debris. Kicked G-34 Mercenary. Kicked G-34 Mercenary out of the way. Aluminum Leg destroyed. K-01 Serf collects debris. Acquired Spread Laser. Acquired 10 matter. K-01 Serf collects debris. Spread Laser destroyed. Aluminum Leg destroyed. Slammed into L-31 Rogue. Map ----- +----------------------------------------------------+ | | | | | | | | | | | | | | | | | ?????########?????????????????????????????? | | ?????# ?????????????????????????????? | | ?????# ????? #??????????????????????? | | ?????# ? ?? !#??????????????????????? | | ?????# ??? ?#########??????????????? | | ????## ? ??+ +??????????????? | | ?????# ????# #??????????????? | | ############/####### #??????????????? | | #??????????????? | | % +??????????????? | | %%%*= #??????????????? | | ##/############+######/##k##??????????????? | | T%%=###???# ???????#%g #???????????????? | | ## ##?????# ???????# g#???????????????? | | #! #?????# "???????# g#???????????????? | | #! !#?????# """?????# #???????????????? | | #! !#?????# "???????# g#???????????????? | | #! !#?????# ???????# g@#???????????????? | | #####?????# ???????# l#???????????????? | | ?#????????# ??? ???# #???????????????? | | ???#??????##""??????# #???????????????? | | ???????????#"???"???# #???????????????? | | ???????????##???????# #???????????????? | | ????????????????????# #???????????????? | | ????#?#?????????????#######???????????????? | | ??????????????????????????????????????????? | | #########?????????????????????????????????? | | #?????????????????????????????????? | | """"" #?????????????????????????????????? | | ??????????????????????????????????????????? | | ??????????????????????????????????????????? | | ??????????????????????????????????????????? | | ??????????????????????????????????????????? | | ??????????????????????????????????????????? | | ??????????????????????????????????????????? | | ??????????????????????????????????????????? | | ??????????????????????????????????????????? | | ??????????????????????????????????????????? | | ??????????????????????????????????????????? | | ??????????????????????????????????????????? | | ??????????????????????????????????????????? | | ??????????????????????????????????????????? | +----------------------------------------------------+ Best States ------------- Heat Dissipation 28 Energy Generation 10 Energy Capacity 125 Matter Stores 300 Matter Capacity 300 Sight Range 16 Terrain Scan Range 16 Terrain Scan Density 10 Evasion (%) 55 Item Schematics ----------------- None Robot Schematics ------------------ None Fabricated ------------ Nothing Repaired ---------- Nothing Studied --------- None Alien Tech Used ----------------- None Achievements -------------- None Challenges ------------ None Game ------ Seed whodovoodoo Manual? 1 Play Time 00:12:05 Cumulative 44.4 hours Start 2026.03.22 @ 11:32:22 End 2026.03.22 @ 21:01:54 Sessions 3 Manual Loads 0 Difficulty Rogue Special Mode None Game No. 49 Rogue 20 Adventurer 0 Explorer 29 Win Type - Total 0 Types 0/0/0/0/0/0/0/0/0/0 Lore% 4 Gallery% 26 Achievement% 16 Wizard Run 0 Options --------- Layout 1 ASCII 1 Keyboard 1 Movement Vi Keybinds 0 Fullscreen 1 Font 24/Smallcaps Map View 50x35 Zoom Use 0% Tactical HUD 0 Map Filters NONE Filters NONE Steam 1 RUN: 8273bf2c-1a70-424c-816a-bb597e9f2825